bitfinex-derivatives/quotes_ETHF0:USTF0_20250205
["timestamp","ask_amount","ask_price","bid_price","bid_amount"]
[1738763739509,1.2954,2816.9,2816.4,1.2237]
[1738763739709,1.2954,2816.9,2816.3,3.2078]
[1738763739906,0.70978,2816.8,2816.3,3.2078]
[1738763740406,2.00517,2816.9,2816.3,3.2078]
[1738763740999,1.2954,2816.9,2816.3,3.2078]
[1738763742311,2.00516,2816.9,2816.3,3.2078]
[1738763742613,3.2078,2816.7,2816.2,2.37789599]
[1738763743011,3.2078,2816.4,2816.0,0.6095]
[1738763743411,3.2078,2816.7,2816.2,2.37789599]
[1738763743608,40.8,2816.4,2816.2,2.37789599]
[1738763744115,40.8,2816.4,2816.0,3.8173]
[1738763745217,0.6223,2816.3,2816.0,3.8173]
[1738763745814,0.6223,2816.3,2816.0,3.2078]
[1738763746417,0.6223,2816.3,2815.9,3.04512061]
[1738763747520,1.238,2816.3,2815.9,3.04512061]
[1738763748021,1.238,2816.3,2815.9,0.00532462]
[1738763748320,3.2078,2816.1,2815.9,0.00532462]
[1738763748821,3.91775,2816.1,2815.9,0.00532462]
[1738763749221,0.70997,2816.0,2815.9,0.00532462]
[1738763749421,0.6572,2816.0,2815.0,5.58569599]
[1738763749717,3.2078,2815.8,2815.0,5.58569599]
[1738763749919,1.35716,2815.7,2815.0,5.58569599]
[1738763750118,3.2078,2815.5,2814.9,1.2485]
[1738763750319,0.6572,2815.4,2814.9,0.6179]
[1738763750518,3.2078,2815.5,2815.0,2.37789599]
[1738763750717,40.80532462,2815.4,2815.0,2.37789599]
[1738763751319,0.00532462,2815.4,2815.3,2.37789599]
[1738763751517,0.6474,2816.5,2815.3,2.37789599]
[1738763751712,0.6474,2816.5,2815.9,5.58569599]
[1738763751917,0.6474,2816.5,2816.0,0.6105]
[1738763752112,3.8552,2816.5,2816.0,0.6105]
[1738763752317,3.8552,2816.5,2815.6,2.37789599]
[1738763752521,3.2078,2816.2,2815.3,2.98839599]
[1738763752817,3.2078,2815.9,2815.3,2.98839599]
[1738763753018,0.6216,2815.8,2815.3,2.98839599]
[1738763753223,0.6216,2815.8,2814.9,0.00532462]
[1738763753224,0.71015,2815.4,2814.9,0.00532462]
[1738763753427,3.2078,2815.2,2814.9,0.00532462]
[1738763753629,0.6474,2815.1,2814.9,0.00532462]
[1738763757323,3.2078,2815.2,2814.9,0.00532462]
[1738763758626,0.71023,2815.0,2814.9,0.00532462]
[1738763759127,1.35103,2815.0,2814.9,0.00532462]
[1738763759530,40.8,2815.0,2814.9,2.38322061]
[1738763759723,0.6216,2815.3,2814.9,2.38322061]
[1738763759922,0.6216,2815.3,2815.0,0.6122]
[1738763760125,0.6216,2815.3,2815.1,0.6231]
[1738763760326,1.987,2815.5,2815.1,3.8309]
[1738763760526,1.987,2815.5,2815.1,0.6231]
[1738763762826,3.2078,2815.2,2814.9,0.00532462]
[1738763763036,0.6316,2815.1,2814.9,0.00532462]
[1738763763325,0.6049,2815.0,2814.9,0.00532462]
[1738763764124,41.4049,2815.0,2814.9,0.00532462]
[1738763764923,2.6186,2815.1,2814.9,0.00532462]
[1738763765126,1.987,2815.1,2814.9,0.00532462]
[1738763765329,5.1948,2815.1,2814.9,0.00532462]
[1738763765527,40.8,2815.0,2814.9,0.00532462]
[1738763768935,44.0078,2815.0,2814.9,0.00532462]
[1738763769327,3.2078,2816.0,2814.9,0.00532462]
[1738763769526,3.2078,2816.0,2815.4,2.98465329]
[1738763769727,40.8,2815.9,2815.5,1.251]
[1738763771232,40.8,2815.9,2815.5,0.638]
[1738763771930,40.8,2815.9,2815.7,2.98465329]
[1738763772131,40.8,2815.9,2815.8,0.6076]
[1738763772330,40.8,2815.9,2815.8,3.8154]
[1738763773938,0.00532462,2816.3,2815.8,3.8154]
[1738763774436,0.00532462,2816.3,2816.0,2.98465329]
[1738763774629,0.00532462,2816.3,2816.1,0.6402]
[1738763774934,40.80532462,2816.3,2816.1,0.6402]
[1738763776032,40.80532462,2816.3,2816.2,0.6591]
[1738763776339,0.00532462,2816.3,2816.2,0.6591]
[1738763778139,40.80532462,2816.3,2816.2,0.6591]
[1738763778741,0.00532462,2816.3,2816.2,0.6591]
[1738763779647,0.00532462,2816.3,2816.2,3.8669]
[1738763780145,3.2078,2817.1,2816.2,8.8669]
[1738763780441,3.2078,2817.1,2816.6,2.98465329]
[1738763780952,3.2078,2817.1,2816.7,0.6635]
[1738763781140,3.21312462,2817.1,2816.7,0.6635]
[1738763782542,3.21312462,2817.1,2816.8,0.6545]
[1738763782742,40.8,2817.0,2816.8,0.6545]
[1738763783140,40.8,2817.0,2816.8,1.3043]
[1738763784147,40.8,2817.0,2816.9,2.98465329]
[1738763784445,0.00532462,2817.1,2816.8,0.6498]
[1738763784851,40.8,2817.0,2816.8,0.6498]
[1738763786445,40.8,2817.0,2816.6,2.38318845]
[1738763786646,3.2078,2816.8,2816.6,0.00532462]
[1738763786945,0.6483,2816.7,2816.6,0.00532462]
[1738763787354,1.2904,2816.7,2816.6,0.00532462]
[1738763787548,42.0904,2816.7,2816.6,0.00532462]
[1738763787743,41.4483,2816.7,2816.6,0.00532462]
[1738763788052,40.8,2816.7,2816.6,0.00532462]
[1738763788355,40.8,2816.7,2816.6,2.38318845]
[1738763789349,3.2078,2816.8,2816.6,2.38318845]
[1738763789552,3.2078,2816.8,2816.7,0.6159]
[1738763789756,3.2078,2816.8,2816.7,1.2474]
[1738763791049,40.8,2816.9,2816.7,1.2474]
[1738763791250,44.6313,2816.9,2816.6,0.00532462]
[1738763791450,0.6367,2816.8,2816.6,0.00532462]
[1738763792552,1.23,2816.8,2816.6,0.00532462]
[1738763793150,0.6367,2816.8,2816.6,0.00532462]
[1738763793353,3.8313,2816.9,2816.6,0.00532462]
[1738763799358,3.2078,2816.9,2816.7,2.98013827]
[1738763799565,3.2078,2816.9,2816.8,0.6163]
[1738763799954,0.00532462,2817.1,2816.8,0.6163]
[1738763800153,0.00532462,2817.1,2817.0,6.18793827]
[1738763801258,3.2078,2817.6,2817.0,11.18793827]
[1738763801465,3.2078,2818.1,2817.5,2.98013827]
[1738763801668,3.2078,2818.1,2817.6,1.2306]
[1738763801861,0.6473,2818.0,2817.6,1.2306]
[1738763802562,1.2429,2818.0,2817.6,1.2306]
[1738763806360,3.21312462,2818.1,2817.6,1.2306]
[1738763808164,3.21312462,2818.1,2817.7,0.53707378]
[1738763808367,3.21312462,2818.1,2817.8,0.53707378]
[1738763808567,3.21312462,2818.1,2817.6,1.2306]
[1738763808768,3.21312462,2818.1,2817.7,0.53695106]
[1738763808962,3.21312462,2818.1,2817.8,0.53695106]
[1738763809163,3.21312462,2818.1,2817.6,1.2306]
[1738763809466,3.21312462,2818.1,2817.7,0.536863]
[1738763809666,3.21312462,2818.1,2817.8,0.536863]
[1738763809866,3.21312462,2818.1,2817.6,1.2306]
[1738763810068,3.21312462,2818.1,2817.7,0.53687385]
[1738763810369,3.21312462,2818.1,2817.8,0.53666619]
[1738763810568,3.21312462,2818.1,2817.6,1.2306]
[1738763810757,3.21312462,2818.1,2817.7,0.53665106]
[1738763810957,3.21312462,2818.1,2817.8,0.53664922]
[1738763811168,3.21312462,2818.1,2817.6,0.6124]
[1738763812167,3.21312462,2818.1,2817.5,2.98013827]
[1738763812473,0.6094,2818.0,2817.6,0.5364569]
[1738763812767,0.6094,2818.0,2817.4,5.58443867]
[1738763812962,3.2078,2817.7,2817.3,0.53641812]
[1738763813163,0.6302,2817.6,2817.2,0.635]
[1738763813566,3.2078,2817.4,2816.8,2.91322787]
[1738763813770,0.6094,2817.3,2816.9,0.5365892]
[1738763814069,1.242,2817.3,2816.8,2.37663867]
[1738763814268,1.242,2817.3,2816.9,0.53656942]
[1738763814470,0.6326,2817.3,2817.1,2.37663867]
[1738763817070,3.2078,2817.5,2817.2,0.53653962]
[1738763817373,0.6302,2817.6,2817.3,0.53659277]
[1738763817571,0.6302,2817.6,2817.4,0.53659277]
[1738763817769,0.6493,2817.7,2817.4,2.37663867]
[1738763818571,0.6193,2818.0,2817.5,0.53660345]
[1738763818868,0.63182462,2818.1,2817.7,2.37663867]
[1738763819067,0.63182462,2818.1,2817.8,0.5903]
[1738763819471,0.63182462,2818.1,2817.8,1.2168]
[1738763820973,0.00532462,2818.1,2817.8,1.2168]
[1738763822775,0.00532462,2818.1,2818.0,2.37663867]
[1738763823374,0.00532462,2818.1,2818.0,2.91293108]
[1738763823968,0.00532462,2818.1,2818.0,0.53626886]
[1738763824173,0.60382462,2818.1,2817.8,1.2168]
[1738763824366,0.60382462,2818.1,2817.8,0.5903]
[1738763824571,0.6187,2818.0,2817.8,0.5903]
[1738763825173,0.6187,2818.0,2817.7,2.37663867]
[1738763825379,3.91733,2817.8,2817.2,0.6352]
[1738763825582,3.2078,2817.5,2817.2,0.6352]
[1738763825776,1.2442,2817.4,2816.7,0.6484]
[1738763825975,3.2078,2817.2,2816.8,0.53716045]
[1738763826170,3.2078,2817.2,2816.7,0.6484]
[1738763826171,3.2078,2817.2,2816.9,0.53716045]
[1738763826376,40.8,2817.1,2816.7,0.6484]
[1738763826576,3.2078,2817.2,2816.8,2.91388012]
[1738763826774,3.2078,2817.2,2816.8,2.37663867]
[1738763826973,3.2078,2817.2,2816.9,0.537162]
[1738763827178,3.2078,2817.2,2817.0,0.537162]
[1738763827375,3.2078,2817.2,2816.8,2.37663867]
[1738763827578,3.2078,2817.2,2816.9,0.53742356]
[1738763827779,3.2078,2817.2,2817.0,0.53742356]
[1738763827982,3.2078,2817.2,2816.8,2.37663867]
[1738763828179,3.2078,2816.9,2816.6,0.00532462]
[1738763828485,0.70978,2816.8,2816.6,0.00532462]
[1738763828692,1.2125,2816.7,2816.6,0.00532462]
[1738763828983,1.8362,2816.7,2816.6,0.00532462]
[1738763830879,1.2434,2816.7,2816.6,0.00532462]
[1738763842091,0.6237,2816.7,2816.6,0.00532462]
[1738763842296,3.2078,2816.9,2816.6,0.00532462]
[1738763843095,3.2078,2816.9,2816.6,0.63922462]
[1738763843789,3.2078,2816.9,2816.7,0.6395]
[1738763843988,3.2078,2816.9,2816.6,0.00532462]
[1738763844188,1.2478,2816.8,2816.6,0.00532462]
[1738763846087,3.2078,2816.9,2816.6,0.00532462]
[1738763849191,40.8,2817.3,2816.8,2.37663867]
[1738763849391,40.8,2817.3,2816.9,1.76770414]
[1738763849694,40.8,2817.3,2816.9,1.2321]
[1738763849890,40.8,2817.3,2817.1,2.37663867]
[1738763850097,3.2078,2817.6,2817.2,0.6186]
[1738763850494,40.8,2817.5,2817.2,0.6186]
[1738763852103,40.8,2817.5,2817.3,0.53543832]
[1738763852392,40.8,2817.5,2817.4,0.53543832]
[1738763853191,0.6272,2817.8,2817.4,0.53543832]
[1738763853393,0.6272,2817.8,2817.2,0.6186]
[1738763853588,40.8,2817.7,2817.3,0.53571672]
[1738763853805,40.8,2817.7,2817.4,0.53571672]
[1738763853994,40.8,2817.7,2817.2,0.6186]
[1738763854196,40.8,2817.7,2817.3,0.5357351]
[1738763854398,40.8,2817.7,2817.4,0.53597649]
[1738763854597,40.8,2817.7,2817.2,0.6186]
[1738763854794,40.8,2817.7,2817.3,0.53596403]
[1738763854993,40.8,2817.7,2817.2,0.6186]
[1738763855195,3.2078,2817.6,2817.1,3.2078]
[1738763855397,3.2078,2817.6,2817.2,0.53637967]
[1738763855594,3.2078,2817.6,2817.1,3.2078]
[1738763856794,5.58443867,2817.6,2817.1,3.2078]
[1738763856993,3.2078,2817.2,2816.9,1.2321]
[1738763857507,3.2078,2817.2,2816.5,5.58443867]
[1738763857691,1.1948,2817.1,2816.7,0.5366871]
[1738763858000,1.1948,2817.1,2816.5,2.37663867]
[1738763858201,1.1948,2817.1,2816.7,0.53668509]
[1738763858401,1.1948,2817.1,2816.8,0.53664751]
[1738763858701,1.1948,2817.1,2816.5,2.37663867]
[1738763858896,1.1948,2817.1,2816.7,0.5366009]
[1738763859099,40.8,2817.0,2816.5,2.37663867]
[1738763859298,40.8,2817.0,2816.7,0.53669776]
[1738763859594,40.8,2817.0,2816.5,2.37663867]
[1738763859800,40.8,2817.0,2816.7,0.53673865]
[1738763859999,40.8,2817.0,2816.5,2.37663867]
[1738763860300,40.8,2817.0,2816.7,0.53674745]
[1738763860499,40.8,2817.0,2816.5,2.37663867]
[1738763860696,40.8,2817.0,2816.7,0.53679593]
[1738763860895,40.8,2817.0,2816.5,2.37663867]
[1738763861095,40.8,2817.0,2816.7,0.53682604]
[1738763861303,40.8,2817.0,2816.5,2.37663867]
[1738763861498,40.8,2817.0,2816.7,0.53683735]
[1738763861694,40.8,2817.0,2816.5,2.37663867]
[1738763862007,40.8,2817.0,2816.7,0.53683231]
[1738763862202,40.8,2817.0,2816.5,2.37663867]
[1738763862404,40.8,2817.0,2816.7,0.53685864]
[1738763862703,40.8,2817.0,2816.5,2.37663867]
[1738763862903,40.8,2817.0,2816.7,0.53683076]
[1738763863107,40.8,2817.0,2816.8,1.13343076]
[1738763863408,40.8,2817.0,2816.8,0.5966]
[1738763866209,40.8,2817.0,2816.5,2.37663867]
[1738763866406,3.2078,2817.5,2816.8,2.37663867]
[1738763866606,0.5989,2817.4,2816.9,1.18502039]
[1738763866909,40.8,2817.3,2817.0,0.53682039]
[1738763867108,40.8,2817.3,2817.1,0.53682039]
[1738763867309,40.8,2817.3,2817.2,0.53682039]
[1738763867504,3.2078,2817.5,2817.2,0.53682039]
[1738763867805,1.2345,2818.0,2817.4,5.58443867]
[1738763868008,40.8,2817.9,2817.7,2.37663867]
[1738763868209,3.2078,2818.3,2817.8,0.53625608]
[1738763868409,3.2078,2818.3,2817.9,0.53625608]
[1738763868605,40.80532462,2818.1,2818.0,0.53625608]
[1738763869109,0.00532462,2818.1,2818.0,0.53625608]
[1738763870704,0.00532462,2818.1,2817.7,5.58443867]
[1738763870904,0.00532462,2818.1,2817.8,0.53523345]
[1738763871207,0.00532462,2818.1,2817.7,3.2078]
[1738763871710,0.00532462,2818.1,2817.8,0.53525894]
[1738763871711,0.63762462,2818.1,2817.8,0.53525894]
[1738763872008,0.63762462,2818.1,2817.7,3.2078]
[1738763872609,3.2078,2817.9,2817.6,0.53525465]
[1738763872808,3.2078,2817.9,2817.5,1.1873]
[1738763873603,0.63762462,2818.1,2817.6,0.53527754]
[1738763873906,0.63762462,2818.1,2817.7,0.5352083]
[1738763874112,0.63762462,2818.1,2817.5,1.1873]
[1738763874311,0.63762462,2818.1,2817.6,0.53520259]
[1738763874506,0.63762462,2818.1,2817.7,0.53520259]
[1738763874813,0.63762462,2818.1,2817.5,1.1873]
[1738763875013,0.63762462,2818.1,2817.6,0.53518262]
[1738763875310,0.63762462,2818.1,2817.7,0.53540605]
[1738763875612,0.63762462,2818.1,2817.5,1.1873]
[1738763875811,0.63762462,2818.1,2817.6,0.53542441]
[1738763876019,0.63762462,2818.1,2817.5,1.1873]
[1738763876206,0.63762462,2818.1,2817.6,0.53542816]
[1738763876511,0.63762462,2818.1,2817.5,1.1873]
[1738763876812,0.63762462,2818.1,2817.6,0.53531755]
[1738763877014,0.63762462,2818.1,2817.7,0.53531755]
[1738763877310,0.63762462,2818.1,2817.5,1.1873]
[1738763877510,0.63762462,2818.1,2817.6,0.5351437]
[1738763877705,0.63762462,2818.1,2817.7,0.5351437]
[1738763877906,0.63762462,2818.1,2817.5,1.1873]
[1738763878102,0.63762462,2818.1,2817.6,0.53507518]
[1738763878308,0.63762462,2818.1,2817.5,1.1873]
[1738763878515,0.63762462,2818.1,2817.6,0.53510812]
[1738763878709,0.63762462,2818.1,2817.7,0.53510812]
[1738763878907,0.63762462,2818.1,2817.5,1.1873]
[1738763879110,0.63762462,2818.1,2817.6,0.53508975]
[1738763879311,0.63762462,2818.1,2817.7,0.53508975]
[1738763879510,0.63762462,2818.1,2817.5,1.1873]
[1738763879711,0.63762462,2818.1,2817.6,0.53508232]
[1738763879906,0.63762462,2818.1,2817.7,0.53508128]
[1738763880213,0.63762462,2818.1,2817.6,0.53510176]
[1738763880410,0.63762462,2818.1,2817.5,1.1873]
[1738763880613,0.63762462,2818.1,2817.6,0.53508391]
[1738763880914,0.63762462,2818.1,2817.7,0.5350322]
[1738763881114,0.63762462,2818.1,2817.5,1.1873]
[1738763881315,0.63762462,2818.1,2817.6,0.53498525]
[1738763881615,0.63762462,2818.1,2817.5,1.1873]
[1738763881818,0.63762462,2818.1,2817.6,0.53476512]
[1738763882015,0.63762462,2818.1,2817.5,1.1873]
[1738763882209,0.63762462,2818.1,2817.6,0.53479382]
[1738763882410,0.63762462,2818.1,2817.5,1.1873]
[1738763882713,3.2078,2817.9,2817.6,0.53479052]
[1738763883011,5.58443867,2817.9,2817.3,3.2078]
[1738763883217,1.2541,2817.8,2817.3,3.2078]
[1738763883416,1.96363,2817.8,2817.3,3.2078]
[1738763883607,0.6363,2817.8,2817.4,2.37663867]
[1738763883809,0.6363,2817.8,2817.4,2.99013867]
[1738763884007,3.2078,2817.9,2817.4,2.99013867]
[1738763884216,3.2078,2817.9,2817.7,2.37663867]
[1738763884517,3.2078,2817.9,2817.8,0.595]
[1738763885616,0.63762462,2818.1,2817.8,1.12957078]
[1738763885917,0.00532462,2818.1,2817.8,0.595]
[1738763886119,0.00532462,2818.1,2817.9,0.6191]
[1738763886814,0.00532462,2818.1,2817.9,1.15341622]
[1738763887410,0.00532462,2818.1,2817.9,1.15332522]
[1738763888318,0.00532462,2818.1,2817.9,0.6191]
[1738763889119,0.00532462,2818.1,2817.9,1.15368897]
[1738763889417,0.00532462,2818.1,2817.8,0.595]
[1738763889418,0.00532462,2818.1,2817.7,2.37663867]
[1738763890212,0.00532462,2818.1,2817.8,0.53474151]
[1738763890414,0.00532462,2818.1,2817.7,2.37663867]
[1738763890614,0.00532462,2818.1,2817.8,0.53478258]
[1738763890918,0.00532462,2818.1,2818.0,2.37663867]
[1738763891219,0.00532462,2818.1,2818.0,2.91142125]
[1738763891725,3.2078,2818.5,2818.0,7.91142125]
[1738763891917,3.2078,2818.5,2818.1,1.16428258]
[1738763892118,40.8,2818.4,2818.2,0.53478258]
[1738763892315,40.8,2818.4,2818.1,0.6295]
[1738763892617,40.8,2818.4,2818.2,0.53486305]
[1738763892920,40.8,2818.4,2818.1,0.6295]
[1738763893120,40.8,2818.4,2818.2,0.53502169]
[1738763893321,40.8,2818.4,2818.1,0.6295]
[1738763893521,40.8,2818.4,2818.2,0.53530076]
[1738763893722,40.8,2818.4,2818.1,0.6295]
[1738763893922,40.8,2818.4,2818.2,0.5352982]
[1738763894123,40.8,2818.4,2818.1,0.6295]
[1738763894326,40.8,2818.4,2818.2,0.53529343]
[1738763894519,40.8,2818.4,2818.3,0.53529343]
[1738763894821,41.4279,2818.4,2818.3,0.53529343]
[1738763895020,41.4279,2818.4,2818.0,0.00532462]
[1738763895220,0.6052,2818.3,2818.0,0.00532462]
[1738763895518,3.2078,2818.1,2818.0,0.00532462]
[1738763895725,3.2078,2818.1,2817.3,3.2078]
[1738763895923,3.2078,2817.8,2817.4,0.53632936]
[1738763896119,40.8,2817.7,2817.5,0.53632936]
[1738763896316,40.8,2817.7,2817.6,0.53633806]
[1738763897220,0.00532462,2817.9,2817.6,5.53633806]
[1738763897420,0.00532462,2817.9,2817.8,5.58443867]
[1738763897627,0.00532462,2817.9,2817.8,6.12077673]
[1738763897823,0.00532462,2817.9,2817.8,6.73257673]
[1738763899423,0.00532462,2817.9,2817.8,6.73273671]
[1738763901324,0.00532462,2817.9,2817.8,6.73271384]
[1738763903521,0.00532462,2817.9,2817.8,6.73265594]
[1738763904423,0.00532462,2817.9,2817.8,3.74421727]
[1738763905422,0.00532462,2817.9,2817.8,6.12130134]
[1738763907125,44.0078,2818.8,2817.8,11.12130134]
[1738763907331,3.2078,2818.8,2818.3,2.37663867]
[1738763907529,3.2078,2818.8,2818.6,2.37663867]
[1738763907731,3.2078,2818.8,2818.7,0.53686267]
[1738763908123,3.8514,2819.6,2818.7,8.28204992]
[1738763908430,3.2078,2819.6,2819.3,2.37663867]
[1738763908730,3.2078,2819.6,2819.4,0.53686267]
[1738763908932,3.2078,2819.6,2819.5,0.53686267]
[1738763909531,3.2078,2819.6,2819.5,0.53498535]
[1738763910030,3.2078,2819.6,2819.3,2.37663867]
[1738763910331,3.2078,2819.6,2819.4,0.53506329]
[1738763910527,3.2078,2819.6,2819.3,2.37663867]
[1738763910728,3.2078,2819.6,2819.4,0.53478905]
[1738763910924,3.2078,2819.6,2819.3,2.37663867]
[1738763911119,3.2078,2819.6,2819.4,0.53477837]
[1738763911325,0.6535,2819.5,2819.0,2.37663867]
[1738763911526,0.6535,2819.5,2819.1,0.53471708]
[1738763911725,0.6535,2819.5,2819.0,2.37663867]
[1738763912024,3.2078,2820.0,2819.4,2.37663867]
[1738763912227,3.2078,2820.0,2819.5,0.53469123]
[1738763912424,3.2078,2820.0,2819.4,2.37663867]
[1738763912733,3.2078,2820.0,2819.7,2.37663867]
[1738763912929,0.6535,2820.1,2819.7,2.37663867]
[1738763913626,3.2078,2820.0,2819.6,3.2078]
[1738763913833,3.2078,2820.0,2819.5,0.53397973]
[1738763914223,0.6535,2820.1,2819.5,0.53397973]
[1738763915432,0.6535,2820.1,2819.4,2.9106184]
[1738763915631,0.6535,2820.1,2819.4,2.91013161]
[1738763915827,3.2078,2819.5,2819.0,0.53349294]
[1738763916026,0.5281,2819.4,2819.1,2.37663867]
[1738763916435,40.8,2819.3,2819.1,2.37663867]
[1738763917328,0.5281,2819.4,2818.9,0.00532462]
[1738763917329,3.2078,2819.2,2818.9,0.00532462]
[1738763917636,0.5653,2819.1,2818.3,0.53423954]
[1738763917934,3.2078,2818.8,2818.2,2.91087821]
[1738763918135,0.5281,2818.7,2818.2,2.91087821]
[1738763918531,0.5281,2818.7,2818.5,2.37663867]
[1738763918834,0.00532462,2818.7,2818.6,0.53423954]
[1738763919135,0.00532462,2818.7,2818.5,2.91087821]
[1738763921838,0.00532462,2818.7,2818.5,2.37663867]
[1738763922541,3.21312462,2818.7,2818.5,2.37663867]
[1738763922732,0.5797,2818.6,2818.5,2.37663867]
[1738763924736,0.5797,2818.6,2818.5,2.91087821]
[1738763925938,0.5797,2818.6,2818.5,2.91170624]
[1738763926135,0.00532462,2818.7,2818.5,2.91170624]
[1738763926440,3.2078,2819.1,2818.6,1.66586757]
[1738763926632,3.2078,2819.1,2819.0,2.37663867]
[1738763926834,3.2078,2819.1,2819.0,2.91170624]
[1738763927030,1.1122,2820.0,2819.0,6.11950624]
[1738763927236,0.5653,2819.9,2819.4,5.58443867]
[1738763927431,0.5653,2819.9,2819.5,0.53479848]
[1738763927641,41.3653,2819.9,2819.5,0.53479848]
[1738763927840,41.3653,2819.9,2819.5,0.53481141]
[1738763928240,41.3653,2819.9,2819.5,0.53481184]
[1738763928939,3.2078,2819.8,2819.4,2.37663867]
[1738763929241,3.2078,2819.8,2819.2,0.53481184]
[1738763929433,3.2078,2819.5,2818.8,2.37663867]
[1738763929637,3.2078,2819.5,2818.9,0.53481184]
[1738763929835,3.2078,2819.5,2818.9,0.53512245]
[1738763930033,3.2078,2819.5,2818.9,0.53514764]
[1738763930233,3.2078,2819.5,2818.8,2.37663867]
[1738763930434,3.2078,2819.5,2818.9,0.53514335]
[1738763930634,3.2078,2819.5,2818.8,2.37663867]
[1738763930834,3.2078,2819.5,2818.9,0.53522]
[1738763931035,3.2078,2819.5,2819.1,2.37663867]
[1738763933146,40.8,2819.4,2819.1,2.37663867]
[1738763935136,40.8,2819.4,2819.2,0.5357565]
[1738763935338,40.8,2819.4,2819.1,2.37663867]
[1738763935532,40.8,2819.4,2819.2,0.53580881]
[1738763935737,40.8,2819.4,2819.1,2.37663867]
[1738763935940,40.8,2819.4,2819.2,0.53605536]
[1738763936139,40.8,2819.4,2819.1,2.37663867]
[1738763936357,40.8,2819.4,2819.2,0.53605511]
[1738763936557,40.8,2819.4,2819.1,2.37663867]
[1738763936758,40.8,2819.4,2819.2,0.53619431]
[1738763936958,40.8,2819.4,2819.1,2.37663867]
[1738763936959,41.3463,2819.4,2819.1,2.37663867]
[1738763937256,41.3463,2819.4,2819.2,0.53619028]
[1738763937460,41.3463,2819.4,2819.1,2.37663867]
[1738763937656,41.3463,2819.4,2819.2,0.53631374]
[1738763937860,41.3463,2819.4,2819.1,2.37663867]
[1738763938062,41.3463,2819.4,2819.2,0.53627974]
[1738763938263,41.3463,2819.4,2819.3,0.53625472]
[1738763939761,0.5463,2819.4,2819.3,0.53625472]
[1738763940154,41.3463,2819.4,2819.3,0.53625472]
[1738763940355,41.3463,2819.4,2818.9,3.2078]
[1738763940559,0.5527,2819.3,2819.0,0.53629432]
[1738763940758,0.5527,2819.3,2819.1,0.53629432]
[1738763940963,0.5527,2819.3,2818.9,3.2078]
[1738763941267,0.5527,2819.3,2819.0,0.53634573]
[1738763941463,0.5527,2819.3,2819.1,0.53634573]
[1738763941666,0.5527,2819.3,2818.9,3.2078]
[1738763941865,0.5527,2819.3,2819.0,0.53632871]
[1738763942061,0.5527,2819.3,2819.1,0.53632871]
[1738763942267,0.5527,2819.3,2818.9,3.2078]
[1738763942469,0.5527,2819.3,2819.0,0.53639349]
[1738763942668,0.5527,2819.3,2819.1,0.53639349]
[1738763942966,0.5527,2819.3,2818.8,5.58443867]
[1738763943171,0.5527,2819.3,2818.9,0.53638742]
[1738763943367,3.2078,2819.4,2819.0,0.53638742]
[1738763943568,3.2078,2819.4,2819.1,2.91302609]
[1738763943770,3.2078,2819.4,2819.2,0.53638742]
[1738763944064,3.2078,2819.4,2819.1,2.37663867]
[1738763944368,0.5398,2819.3,2818.8,2.37663867]
[1738763944564,0.565,2819.2,2818.9,0.53695945]
[1738763944762,0.565,2819.2,2819.0,0.53695945]
[1738763944962,0.565,2819.2,2819.1,0.53695945]
[1738763945766,0.565,2819.2,2819.1,0.53752944]
[1738763946960,3.2078,2819.4,2819.1,2.91416811]
[1738763947165,1.77221,2820.4,2819.2,0.53752944]
[1738763947166,3.2078,2819.7,2819.2,0.53752944]
[1738763947367,3.2078,2819.7,2819.3,0.53752944]
[1738763947571,3.2078,2819.7,2819.4,0.53752944]
[1738763947871,3.2078,2819.7,2819.1,5.58443867]
[1738763948071,3.2078,2819.7,2819.2,0.5370625]
[1738763948264,3.2078,2819.7,2819.3,0.5370625]
[1738763948467,3.2078,2819.7,2819.4,0.5370625]
[1738763948663,3.2078,2819.7,2819.1,5.58443867]
[1738763948971,3.2078,2819.7,2819.2,0.53714991]
[1738763949268,3.2078,2819.7,2819.3,0.53714991]
[1738763949465,3.2078,2819.7,2819.4,0.53714991]
[1738763949666,3.2078,2819.7,2819.1,5.58443867]
[1738763949865,3.2078,2819.7,2819.2,0.53715548]
[1738763950065,3.2078,2819.7,2819.3,0.53715548]
[1738763950267,3.2078,2819.7,2819.4,0.53715548]
[1738763950467,3.2078,2819.7,2819.1,5.58443867]
[1738763950663,3.2078,2819.7,2819.2,0.53717248]
[1738763950870,3.2078,2819.7,2819.3,0.53717248]
[1738763951070,3.2078,2819.7,2819.4,0.53717248]
[1738763951271,3.2078,2819.7,2819.5,0.53717248]
[1738763951470,3.2078,2819.7,2819.2,1.0545]
[1738763951664,3.2078,2819.7,2819.3,0.53727875]
[1738763951869,3.2078,2819.7,2819.4,0.53726837]
[1738763952071,3.2078,2819.7,2819.2,1.0545]
[1738763952072,3.2078,2819.7,2819.5,0.53726837]
[1738763952270,3.2078,2819.7,2819.2,1.0545]
[1738763952466,3.2078,2819.7,2819.4,2.37663867]
[1738763952674,3.2078,2820.1,2819.5,0.53717521]
[1738763952975,3.2078,2820.1,2820.0,2.37663867]
[1738763953173,3.2078,2820.1,2820.0,2.91381388]
[1738763955572,3.2078,2820.1,2820.0,0.53717521]
[1738763956080,3.2078,2820.1,2820.0,0.5364882]
[1738763956577,3.2078,2820.1,2819.8,0.00532462]
[1738763956771,0.5686,2820.0,2819.8,0.00532462]
[1738763958677,40.8,2819.9,2819.8,0.00532462]
[1738763961174,40.8,2819.9,2819.8,2.38196329]
[1738763961371,40.8,2819.9,2819.8,2.9184134]
[1738763961567,40.8,2819.9,2819.8,2.38196329]
[1738763961773,40.8,2819.9,2819.8,0.00532462]
[1738763962278,40.8,2819.9,2819.8,0.54174869]
[1738763962779,0.5686,2820.0,2819.8,0.54174869]
[1738763962980,0.5686,2820.0,2819.8,0.00532462]
[1738763964078,1.27759,2820.0,2819.8,0.00532462]
[1738763964276,1.78549,2819.9,2819.8,0.00532462]
[1738763964575,1.0765,2819.9,2819.8,0.00532462]
[1738763964784,0.5686,2820.0,2819.8,0.00532462]
[1738763966179,1.27757,2820.0,2819.8,0.00532462]